[Event "Titled Tuesday Blitz August 15 Late 2023"]
[White "Fernandez Garcia, Gumersindo"]
[Black "subham777"]
[WhiteFideId "24516740"]
[WhiteElo "2408"]
[BlackElo "2535"]
[Result "0-1"]
[Round "8"]
[TimeControl "180+1"]
[Date "2023.08.15"]
[WhiteClock "0:00:00"]
[BlackClock "0:00:04"]
[Board "76"]

1. d4 {[%clk 0:03:00]}  d5 {[%clk 0:02:59]} 2. c4 {[%clk 0:03:00]}  e6 {[%clk 0:02:59]} 3. Nf3 {[%clk 0:02:59]}  Nf6 {[%clk 0:02:59]} 4. g3 {[%clk 0:02:58]}  Be7 {[%clk 0:02:59]} 5. Bg2 {[%clk 0:02:58]}  O-O {[%clk 0:03:00]} 6. O-O {[%clk 0:02:59]}  dxc4 {[%clk 0:03:01]} 7. Ne5 {[%clk 0:02:57]}  Nc6 {[%clk 0:03:00]} 8. Bxc6 {[%clk 0:02:56]}  bxc6 {[%clk 0:03:01]} 9. Nxc6 {[%clk 0:02:56]}  Qe8 {[%clk 0:03:01]} 10. Nxe7+ {[%clk 0:02:57]}  Qxe7 {[%clk 0:03:02]} 11. Qa4 {[%clk 0:02:57]}  e5 {[%clk 0:02:43]} 12. dxe5 {[%clk 0:02:38]}  Qxe5 {[%clk 0:02:44]} 13. Qxc4 {[%clk 0:02:37]}  a5 {[%clk 0:02:33]} 14. Nc3 {[%clk 0:02:35]}  Ba6 {[%clk 0:02:28]} 15. Bf4 {[%clk 0:02:29]}  Qh5 {[%clk 0:02:09]} 16. Qxc7 {[%clk 0:02:06]}  Bxe2 {[%clk 0:02:05]} 17. Nxe2 {[%clk 0:01:54]}  Qxe2 {[%clk 0:02:06]} 18. Qe5 {[%clk 0:01:50]}  Qg4 {[%clk 0:01:50]} 19. Qg5 {[%clk 0:01:09]}  Qh3 {[%clk 0:01:31]} 20. Be5 {[%clk 0:00:51]}  h6 {[%clk 0:01:28]} 21. Qh4 {[%clk 0:00:50]}  Qxh4 {[%clk 0:01:24]} 22. gxh4 {[%clk 0:00:51]}  Ng4 {[%clk 0:01:25]} 23. Bc3 {[%clk 0:00:47]}  Rfe8 {[%clk 0:01:19]} 24. Rfe1 {[%clk 0:00:46]}  a4 {[%clk 0:01:12]} 25. h3 {[%clk 0:00:42]}  Nf6 {[%clk 0:01:10]} 26. Bxf6 {[%clk 0:00:41]}  gxf6 {[%clk 0:01:11]} 27. Kf1 {[%clk 0:00:37]}  Kg7 {[%clk 0:01:09]} 28. Rac1 {[%clk 0:00:32]}  Rxe1+ {[%clk 0:01:08]} 29. Rxe1 {[%clk 0:00:28]}  Rb8 {[%clk 0:01:08]} 30. Re4 {[%clk 0:00:17]}  Rxb2 {[%clk 0:01:08]} 31. Rxa4 {[%clk 0:00:18]}  Kg6 {[%clk 0:01:07]} 32. Kg2 {[%clk 0:00:18]}  f5 {[%clk 0:01:07]} 33. Kg3 {[%clk 0:00:17]}  Rb1 {[%clk 0:01:05]} 34. f3 {[%clk 0:00:16]}  Rg1+ {[%clk 0:01:02]} 35. Kf4 {[%clk 0:00:17]}  Rh1 {[%clk 0:01:02]} 36. Ra6+ {[%clk 0:00:15]}  f6 {[%clk 0:01:02]} 37. h5+ {[%clk 0:00:16]}  Kg7 {[%clk 0:00:50]} 38. Ra7+ {[%clk 0:00:14]}  Kf8 {[%clk 0:00:48]} 39. Kxf5 {[%clk 0:00:14]}  Rxh3 {[%clk 0:00:49]} 40. Kg6 {[%clk 0:00:12]}  Rxf3 {[%clk 0:00:44]} 41. Kxh6 {[%clk 0:00:09]}  Rg3 {[%clk 0:00:44]} 42. a4 {[%clk 0:00:08]}  f5 {[%clk 0:00:42]} 43. a5 {[%clk 0:00:08]}  f4 {[%clk 0:00:43]} 44. a6 {[%clk 0:00:08]}  Ra3 {[%clk 0:00:37]} 45. Ra8+ {[%clk 0:00:06]}  Kf7 {[%clk 0:00:37]} 46. a7 {[%clk 0:00:05]}  f3 {[%clk 0:00:34]} 47. Rh8 {[%clk 0:00:01]}  f2 {[%clk 0:00:33]} 48. Rh7+ {[%clk 0:00:01]}  Kf6 {[%clk 0:00:30]} 49. Rh8 {[%clk 0:00:02]}  Ke7 {[%clk 0:00:28]} 50. a8=Q {[%clk 0:00:02]}  Rxa8 {[%clk 0:00:27]} 51. Rxa8 {[%clk 0:00:02]}  f1=Q {[%clk 0:00:28]} 52. Rg8 {[%clk 0:00:02]}  Kf7 {[%clk 0:00:27]} 53. Rg7+ {[%clk 0:00:02]}  Kf8 {[%clk 0:00:28]} 54. Rg6 {[%clk 0:00:03]}  Qf7 {[%clk 0:00:24]} 55. Kg5 {[%clk 0:00:03]}  Qe7+ {[%clk 0:00:24]} 56. Kf5 {[%clk 0:00:03]}  Kf7 {[%clk 0:00:21]} 57. Kg4 {[%clk 0:00:02]}  Qe5 {[%clk 0:00:20]} 58. Rg5 {[%clk 0:00:02]}  Qe4+ {[%clk 0:00:19]} 59. Kg3 {[%clk 0:00:02]}  Kf6 {[%clk 0:00:17]} 60. Rg4 {[%clk 0:00:02]}  Qe3+ {[%clk 0:00:17]} 61. Kh4 {[%clk 0:00:03]}  Kf5 {[%clk 0:00:17]} 62. Rg3 {[%clk 0:00:02]}  Qf2 {[%clk 0:00:16]} 63. Kh3 {[%clk 0:00:02]}  Qf1+ {[%clk 0:00:10]} 64. Kh4 {[%clk 0:00:02]}  Kf4 {[%clk 0:00:10]} 65. Rg4+ {[%clk 0:00:02]}  Kf3 {[%clk 0:00:11]} 66. Rg3+ {[%clk 0:00:02]}  Kf2 {[%clk 0:00:10]} 67. Rg4 {[%clk 0:00:02]}  Qh1+ {[%clk 0:00:09]} 68. Kg5 {[%clk 0:00:03]}  Kf3 {[%clk 0:00:09]} 69. Rf4+ {[%clk 0:00:03]}  Ke3 {[%clk 0:00:10]} 70. Rg4 {[%clk 0:00:03]}  Qc1 {[%clk 0:00:10]} 71. h6 {[%clk 0:00:03]}  Kf3+ {[%clk 0:00:10]} 72. Kh5 {[%clk 0:00:03]}  Qc8 {[%clk 0:00:09]} 73. Rg5 {[%clk 0:00:03]}  Kf4 {[%clk 0:00:08]} 74. h7 {[%clk 0:00:02]}  Qh8 {[%clk 0:00:05]} 75. Kg6 {[%clk 0:00:01]}  Qe8+ {[%clk 0:00:04]} 76. Kh6 {[%clk 0:00:01]}  Qf8+ {[%clk 0:00:04]} 77. Rg7 {[%clk 0:00:00]}  Kf5 {[%clk 0:00:04]} 0-1


[Site "https://www.chess.com"]

[Event "Titled Tuesday Blitz August 15 Late 2023"]
[White "Barwinska, Ewa"]
[Black "Kashefi, Amir Hosein"]
[WhiteFideId "21833761"]
[BlackFideId "12557935"]
[WhiteElo "2305"]
[BlackElo "2528"]
[Result "0-1"]
[Round "8"]
[TimeControl "180+1"]
[Date "2023.08.15"]
[WhiteClock "0:00:40"]
[BlackClock "0:00:30"]
[Board "77"]

1. e4 {[%clk 0:03:00]}  c5 {[%clk 0:02:59]} 2. Nf3 {[%clk 0:02:58]}  e6 {[%clk 0:02:59]} 3. c4 {[%clk 0:02:56]}  Nc6 {[%clk 0:02:59]} 4. Nc3 {[%clk 0:02:55]}  Nf6 {[%clk 0:02:59]} 5. Be2 {[%clk 0:02:46]}  Be7 {[%clk 0:02:59]} 6. d4 {[%clk 0:02:41]}  cxd4 {[%clk 0:02:59]} 7. Nxd4 {[%clk 0:02:42]}  a6 {[%clk 0:02:59]} 8. O-O {[%clk 0:02:39]}  Qc7 {[%clk 0:02:59]} 9. Be3 {[%clk 0:02:32]}  O-O {[%clk 0:02:59]} 10. Kh1 {[%clk 0:02:20]}  d6 {[%clk 0:02:57]} 11. Rc1 {[%clk 0:02:16]}  b6 {[%clk 0:02:56]} 12. Nd5 {[%clk 0:02:00]}  exd5 {[%clk 0:02:33]} 13. cxd5 {[%clk 0:02:01]}  Nxe4 {[%clk 0:02:09]} 14. Rxc6 {[%clk 0:01:44]}  Qd7 {[%clk 0:01:55]} 15. Rxb6 {[%clk 0:01:34]}  Bf6 {[%clk 0:01:54]} 16. Bd3 {[%clk 0:01:14]}  Nc5 {[%clk 0:01:39]} 17. Bf5 {[%clk 0:01:10]}  Qd8 {[%clk 0:01:28]} 18. Rc6 {[%clk 0:01:02]}  Bxd4 {[%clk 0:01:05]} 19. Bxc8 {[%clk 0:01:02]}  Bxe3 {[%clk 0:01:04]} 20. Bf5 {[%clk 0:00:35]}  Bg5 {[%clk 0:01:01]} 21. b4 {[%clk 0:00:34]}  Nb7 {[%clk 0:00:53]} 22. Qc2 {[%clk 0:00:33]}  g6 {[%clk 0:00:48]} 23. f4 {[%clk 0:00:22]}  Bf6 {[%clk 0:00:48]} 24. Bd3 {[%clk 0:00:18]}  a5 {[%clk 0:00:47]} 25. Ba6 {[%clk 0:00:09]}  Rb8 {[%clk 0:00:27]} 26. Rc7 {[%clk 0:00:09]}  Nc5 {[%clk 0:00:20]} 27. bxc5 {[%clk 0:00:08]}  Qxc7 {[%clk 0:00:20]} 28. c6 {[%clk 0:00:09]}  Rb2 {[%clk 0:00:19]} 29. Qe4 {[%clk 0:00:08]}  Rfb8 {[%clk 0:00:18]} 30. f5 {[%clk 0:00:08]}  Kg7 {[%clk 0:00:18]} 31. fxg6 {[%clk 0:00:07]}  hxg6 {[%clk 0:00:17]} 32. h3 {[%clk 0:00:08]}  Qe7 {[%clk 0:00:14]} 33. Qf4 {[%clk 0:00:07]}  Rxa2 {[%clk 0:00:13]} 34. c7 {[%clk 0:00:07]}  Ra8 {[%clk 0:00:06]} 35. c8=Q {[%clk 0:00:07]}  Rxc8 {[%clk 0:00:06]} 36. Bxc8 {[%clk 0:00:07]}  a4 {[%clk 0:00:05]} 37. Bb7 {[%clk 0:00:07]}  a3 {[%clk 0:00:05]} 38. Bc6 {[%clk 0:00:07]}  Rb2 {[%clk 0:00:05]} 39. Qa4 {[%clk 0:00:03]}  a2 {[%clk 0:00:06]} 40. Ra1 {[%clk 0:00:03]}  Qe2 {[%clk 0:00:05]} 41. Rxa2 {[%clk 0:00:03]}  Rxa2 {[%clk 0:00:05]} 42. Qg4 {[%clk 0:00:02]}  Qxg4 {[%clk 0:00:05]} 43. hxg4 {[%clk 0:00:03]}  Ra1+ {[%clk 0:00:06]} 44. Kh2 {[%clk 0:00:03]}  Be5+ {[%clk 0:00:06]} 45. Kh3 {[%clk 0:00:04]}  Ra2 {[%clk 0:00:07]} 46. g3 {[%clk 0:00:04]}  Ra1 {[%clk 0:00:08]} 47. g5 {[%clk 0:00:04]}  Rh1+ {[%clk 0:00:09]} 48. Kg4 {[%clk 0:00:05]}  Rg1 {[%clk 0:00:09]} 49. Kf3 {[%clk 0:00:06]}  Rxg3+ {[%clk 0:00:09]} 50. Ke4 {[%clk 0:00:07]}  Rxg5 {[%clk 0:00:09]} 51. Bd7 {[%clk 0:00:08]}  Rg1 {[%clk 0:00:09]} 52. Kd3 {[%clk 0:00:09]}  Ra1 {[%clk 0:00:09]} 53. Kc4 {[%clk 0:00:10]}  Rc1+ {[%clk 0:00:09]} 54. Kb5 {[%clk 0:00:10]}  Rd1 {[%clk 0:00:10]} 55. Bc6 {[%clk 0:00:11]}  Rc1 {[%clk 0:00:10]} 56. Kb6 {[%clk 0:00:11]}  Rc5 {[%clk 0:00:11]} 57. Kc7 {[%clk 0:00:12]}  g5 {[%clk 0:00:11]} 58. Kd7 {[%clk 0:00:13]}  f5 {[%clk 0:00:12]} 59. Ke8 {[%clk 0:00:13]}  g4 {[%clk 0:00:12]} 60. Bd7 {[%clk 0:00:14]}  Kf6 {[%clk 0:00:13]} 61. Bxf5 {[%clk 0:00:15]}  Kxf5 {[%clk 0:00:13]} 62. Kd7 {[%clk 0:00:15]}  Rxd5 {[%clk 0:00:14]} 63. Kc6 {[%clk 0:00:15]}  Rd2 {[%clk 0:00:15]} 64. Kd7 {[%clk 0:00:16]}  d5 {[%clk 0:00:15]} 65. Kd8 {[%clk 0:00:17]}  d4 {[%clk 0:00:16]} 66. Ke7 {[%clk 0:00:18]}  d3 {[%clk 0:00:17]} 67. Kf7 {[%clk 0:00:19]}  Bf4 {[%clk 0:00:18]} 68. Kg8 {[%clk 0:00:20]}  Ke4 {[%clk 0:00:19]} 69. Kf8 {[%clk 0:00:21]}  Bg3 {[%clk 0:00:20]} 70. Kg8 {[%clk 0:00:21]}  Bf2 {[%clk 0:00:20]} 71. Kg7 {[%clk 0:00:22]}  Be1 {[%clk 0:00:21]} 72. Kh7 {[%clk 0:00:23]}  g3 {[%clk 0:00:21]} 73. Kh6 {[%clk 0:00:24]}  g2 {[%clk 0:00:22]} 74. Kg6 {[%clk 0:00:25]}  Ra2 {[%clk 0:00:23]} 75. Kf7 {[%clk 0:00:26]}  Ra1 {[%clk 0:00:24]} 76. Ke8 {[%clk 0:00:27]}  Ke3 {[%clk 0:00:25]} 77. Ke7 {[%clk 0:00:28]}  Ke2 {[%clk 0:00:26]} 78. Ke6 {[%clk 0:00:29]}  Kd1 {[%clk 0:00:27]} 79. Ke5 {[%clk 0:00:30]}  Bd2 {[%clk 0:00:27]} 80. Kd4 {[%clk 0:00:30]}  Bc1 {[%clk 0:00:28]} 81. Kd5 {[%clk 0:00:31]}  d2 {[%clk 0:00:29]} 82. Kd6 {[%clk 0:00:32]}  g1=Q {[%clk 0:00:29]} 83. Kc6 {[%clk 0:00:33]}  Qe1 {[%clk 0:00:30]} 84. Kc7 {[%clk 0:00:34]}  Ke2 {[%clk 0:00:30]} 85. Kb8 {[%clk 0:00:35]}  d1=Q {[%clk 0:00:31]} 86. Kc8 {[%clk 0:00:36]}  Qdd2 {[%clk 0:00:32]} 87. Kb7 {[%clk 0:00:37]}  Qed1 {[%clk 0:00:32]} 88. Kb8 {[%clk 0:00:38]}  Bb2 {[%clk 0:00:33]} 89. Kc7 {[%clk 0:00:39]}  Q2c2+ {[%clk 0:00:34]} 90. Kb6 {[%clk 0:00:39]}  Ra6+ {[%clk 0:00:29]} 91. Kb7 {[%clk 0:00:40]}  Qc6+ {[%clk 0:00:29]} 92. Kb8 {[%clk 0:00:40]}  Qd8# {[%clk 0:00:30]} 0-1


[Site "https://www.chess.com"]

[Event "Titled Tuesday Blitz August 15 Late 2023"]
[White "Ardila, Oscar Humberto"]
[Black "Martin Barcelo, Carles"]
[WhiteFideId "4404742"]
[BlackFideId "24561444"]
[WhiteElo "2292"]
[BlackElo "2526"]
[Result "1-0"]
[Round "8"]
[TimeControl "180+1"]
[Date "2023.08.15"]
[WhiteClock "0:00:16"]
[BlackClock "0:00:00"]
[Board "78"]

1. d4 {[%clk 0:02:40]}  Nf6 {[%clk 0:02:59]} 2. c4 {[%clk 0:02:38]}  d6 {[%clk 0:02:57]} 3. Nc3 {[%clk 0:02:36]}  e6 {[%clk 0:02:55]} 4. Nf3 {[%clk 0:02:36]}  b6 {[%clk 0:02:55]} 5. e3 {[%clk 0:02:35]}  Bb7 {[%clk 0:02:56]} 6. Be2 {[%clk 0:02:35]}  g6 {[%clk 0:02:56]} 7. O-O {[%clk 0:02:35]}  Bg7 {[%clk 0:02:57]} 8. b3 {[%clk 0:02:35]}  O-O {[%clk 0:02:57]} 9. Bb2 {[%clk 0:02:36]}  Nbd7 {[%clk 0:02:57]} 10. Rc1 {[%clk 0:02:36]}  Qe7 {[%clk 0:02:56]} 11. Qc2 {[%clk 0:02:34]}  a6 {[%clk 0:02:54]} 12. Rfd1 {[%clk 0:02:33]}  c5 {[%clk 0:02:53]} 13. a3 {[%clk 0:02:32]}  Rac8 {[%clk 0:02:52]} 14. Qb1 {[%clk 0:02:30]}  Rfd8 {[%clk 0:02:51]} 15. Qa1 {[%clk 0:02:30]}  Qf8 {[%clk 0:02:45]} 16. b4 {[%clk 0:02:25]}  Ne4 {[%clk 0:02:41]} 17. dxc5 {[%clk 0:02:14]}  dxc5 {[%clk 0:02:17]} 18. Nxe4 {[%clk 0:02:11]}  Bxe4 {[%clk 0:02:16]} 19. Ng5 {[%clk 0:01:57]}  Bb7 {[%clk 0:01:58]} 20. Bf3 {[%clk 0:01:56]}  Bxf3 {[%clk 0:01:57]} 21. Nxf3 {[%clk 0:01:56]}  Bxb2 {[%clk 0:01:16]} 22. Qxb2 {[%clk 0:01:56]}  Qg7 {[%clk 0:01:17]} 23. Qd2 {[%clk 0:01:34]}  Qf6 {[%clk 0:01:14]} 24. Qd6 {[%clk 0:01:32]}  Kg7 {[%clk 0:00:45]} 25. h3 {[%clk 0:01:31]}  h6 {[%clk 0:00:35]} 26. bxc5 {[%clk 0:01:25]}  bxc5 {[%clk 0:00:32]} 27. Qxa6 {[%clk 0:01:23]}  Ne5 {[%clk 0:00:32]} 28. Nxe5 {[%clk 0:01:19]}  Qxe5 {[%clk 0:00:33]} 29. Qa5 {[%clk 0:01:12]}  Qb2 {[%clk 0:00:20]} 30. Rb1 {[%clk 0:01:06]}  Rxd1+ {[%clk 0:00:19]} 31. Rxd1 {[%clk 0:01:06]}  Qc2 {[%clk 0:00:17]} 32. Qd2 {[%clk 0:00:58]}  Qxc4 {[%clk 0:00:16]} 33. Qb2+ {[%clk 0:00:57]}  Kg8 {[%clk 0:00:14]} 34. Rc1 {[%clk 0:00:57]}  Qa4 {[%clk 0:00:11]} 35. Qc3 {[%clk 0:00:53]}  c4 {[%clk 0:00:08]} 36. Kh2 {[%clk 0:00:52]}  Ra8 {[%clk 0:00:06]} 37. Qd4 {[%clk 0:00:41]}  Qxa3 {[%clk 0:00:04]} 38. Rxc4 {[%clk 0:00:41]}  Qe7 {[%clk 0:00:05]} 39. Qc3 {[%clk 0:00:37]}  Rd8 {[%clk 0:00:04]} 40. Rc6 {[%clk 0:00:32]}  Qd7 {[%clk 0:00:03]} 41. g4 {[%clk 0:00:18]}  Qe7 {[%clk 0:00:03]} 42. Kg2 {[%clk 0:00:17]}  Qd7 {[%clk 0:00:00]} 43. Kg3 {[%clk 0:00:16]} 1-0


[Site "https://www.chess.com"]

[Event "Titled Tuesday Blitz August 15 Late 2023"]
[White "Fiorito, Joaquin"]
[Black "Janaszak, Dawid"]
[WhiteFideId "180173"]
[BlackFideId "1119206"]
[WhiteElo "2652"]
[BlackElo "2499"]
[Result "1-0"]
[Round "8"]
[TimeControl "180+1"]
[Date "2023.08.15"]
[WhiteClock "0:00:35"]
[BlackClock "0:00:00"]
[Board "79"]

1. d4 {[%clk 0:03:00]}  d5 {[%clk 0:02:57]} 2. c4 {[%clk 0:03:00]}  e6 {[%clk 0:02:56]} 3. Nc3 {[%clk 0:03:00]}  c5 {[%clk 0:02:56]} 4. cxd5 {[%clk 0:03:00]}  cxd4 {[%clk 0:02:56]} 5. Qxd4 {[%clk 0:03:00]}  Nc6 {[%clk 0:02:56]} 6. Qd1 {[%clk 0:02:59]}  exd5 {[%clk 0:02:56]} 7. Qxd5 {[%clk 0:03:00]}  Bd6 {[%clk 0:02:56]} 8. g3 {[%clk 0:02:58]}  Nf6 {[%clk 0:02:55]} 9. Qd1 {[%clk 0:02:57]}  Bf5 {[%clk 0:02:45]} 10. Bg2 {[%clk 0:02:52]}  Qe7 {[%clk 0:02:38]} 11. Nf3 {[%clk 0:02:44]}  Nb4 {[%clk 0:02:30]} 12. Nd4 {[%clk 0:02:42]}  Bd7 {[%clk 0:02:06]} 13. a3 {[%clk 0:02:40]}  Nc6 {[%clk 0:02:05]} 14. Nxc6 {[%clk 0:02:41]}  bxc6 {[%clk 0:02:06]} 15. O-O {[%clk 0:02:41]}  O-O {[%clk 0:02:03]} 16. Bg5 {[%clk 0:02:38]}  Be5 {[%clk 0:01:55]} 17. Qc2 {[%clk 0:02:37]}  h6 {[%clk 0:01:54]} 18. Bd2 {[%clk 0:02:36]}  Rab8 {[%clk 0:01:47]} 19. Rad1 {[%clk 0:02:35]}  Rfe8 {[%clk 0:01:44]} 20. Rfe1 {[%clk 0:02:33]}  Be6 {[%clk 0:01:41]} 21. b4 {[%clk 0:02:27]}  c5 {[%clk 0:01:35]} 22. b5 {[%clk 0:02:22]}  Qc7 {[%clk 0:01:00]} 23. a4 {[%clk 0:02:18]}  c4 {[%clk 0:00:54]} 24. Bc6 {[%clk 0:02:10]}  Rec8 {[%clk 0:00:51]} 25. Ne4 {[%clk 0:02:08]}  Nd5 {[%clk 0:00:48]} 26. Nc5 {[%clk 0:01:49]}  c3 {[%clk 0:00:40]} 27. Nxe6 {[%clk 0:01:45]}  fxe6 {[%clk 0:00:40]} 28. Bc1 {[%clk 0:01:31]}  Nb4 {[%clk 0:00:40]} 29. Qe4 {[%clk 0:01:30]}  Nxc6 {[%clk 0:00:39]} 30. bxc6 {[%clk 0:01:31]}  c2 {[%clk 0:00:29]} 31. Qxc2 {[%clk 0:01:30]}  Qxc6 {[%clk 0:00:28]} 32. Qg6 {[%clk 0:01:26]}  Kh8 {[%clk 0:00:18]} 33. Be3 {[%clk 0:01:14]}  a5 {[%clk 0:00:17]} 34. h4 {[%clk 0:01:09]}  Qe8 {[%clk 0:00:17]} 35. Qe4 {[%clk 0:01:07]}  Bc3 {[%clk 0:00:16]} 36. Rf1 {[%clk 0:01:04]}  Rb4 {[%clk 0:00:15]} 37. Qf3 {[%clk 0:00:58]}  Rxa4 {[%clk 0:00:15]} 38. Rb1 {[%clk 0:00:53]}  Qf8 {[%clk 0:00:15]} 39. Qb7 {[%clk 0:00:51]}  Rb4 {[%clk 0:00:14]} 40. Qa6 {[%clk 0:00:48]}  Ra8 {[%clk 0:00:13]} 41. Qxe6 {[%clk 0:00:47]}  a4 {[%clk 0:00:13]} 42. Rbc1 {[%clk 0:00:46]}  Bf6 {[%clk 0:00:11]} 43. Bc5 {[%clk 0:00:44]}  Qb8 {[%clk 0:00:05]} 44. Bxb4 {[%clk 0:00:43]}  Qxb4 {[%clk 0:00:05]} 45. Rb1 {[%clk 0:00:41]}  Qd2 {[%clk 0:00:04]} 46. Rfd1 {[%clk 0:00:40]}  Qc2 {[%clk 0:00:04]} 47. Rbc1 {[%clk 0:00:39]}  Qb3 {[%clk 0:00:04]} 48. Qxb3 {[%clk 0:00:34]}  axb3 {[%clk 0:00:05]} 49. Rb1 {[%clk 0:00:35]}  b2 {[%clk 0:00:05]} 50. Kg2 {[%clk 0:00:33]}  Rc8 {[%clk 0:00:05]} 51. Rd2 {[%clk 0:00:33]}  Rc1 {[%clk 0:00:04]} 52. Rbxb2 {[%clk 0:00:33]}  Bxb2 {[%clk 0:00:04]} 53. Rxb2 {[%clk 0:00:34]}  Kh7 {[%clk 0:00:04]} 54. e4 {[%clk 0:00:34]}  Kg6 {[%clk 0:00:04]} 55. Rb5 {[%clk 0:00:34]}  Kf6 {[%clk 0:00:04]} 56. h5 {[%clk 0:00:33]}  Rc3 {[%clk 0:00:03]} 57. f4 {[%clk 0:00:33]}  Re3 {[%clk 0:00:03]} 58. Rb6+ {[%clk 0:00:33]}  Kf7 {[%clk 0:00:03]} 59. e5 {[%clk 0:00:34]}  Rd3 {[%clk 0:00:03]} 60. Kh3 {[%clk 0:00:34]}  Rd1 {[%clk 0:00:00]} 61. Kg4 {[%clk 0:00:35]} 1-0


[Site "https://www.chess.com"]

[Event "Titled Tuesday Blitz August 15 Late 2023"]
[White "Cnejev, Vladimir-Alexandru"]
[Black "Zampronha, Wladimir Camilo"]
[WhiteFideId "1260898"]
[BlackFideId "2103087"]
[WhiteElo "2568"]
[BlackElo "2265"]
[Result "1-0"]
[Round "8"]
[TimeControl "180+1"]
[Date "2023.08.15"]
[WhiteClock "0:00:03"]
[BlackClock "0:00:00"]
[Board "80"]

1. Nf3 {[%clk 0:02:58]}  Nf6 {[%clk 0:02:59]} 2. Rg1 {[%clk 0:02:56]}  d6 {[%clk 0:02:57]} 3. d4 {[%clk 0:02:50]}  c5 {[%clk 0:02:53]} 4. c3 {[%clk 0:02:48]}  cxd4 {[%clk 0:02:51]} 5. cxd4 {[%clk 0:02:49]}  Nc6 {[%clk 0:02:44]} 6. Nc3 {[%clk 0:02:50]}  Bf5 {[%clk 0:02:37]} 7. a3 {[%clk 0:02:47]}  Qd7 {[%clk 0:02:34]} 8. h3 {[%clk 0:02:41]}  e5 {[%clk 0:02:31]} 9. g4 {[%clk 0:02:40]}  exd4 {[%clk 0:02:20]} 10. Nxd4 {[%clk 0:02:36]}  Be6 {[%clk 0:02:10]} 11. e4 {[%clk 0:02:29]}  Be7 {[%clk 0:02:03]} 12. f4 {[%clk 0:02:25]}  Nxd4 {[%clk 0:01:48]} 13. Qxd4 {[%clk 0:02:22]}  O-O {[%clk 0:01:41]} 14. f5 {[%clk 0:02:07]}  Bb3 {[%clk 0:01:37]} 15. Qb4 {[%clk 0:01:42]}  Bc2 {[%clk 0:01:36]} 16. Rg2 {[%clk 0:01:40]}  a5 {[%clk 0:01:33]} 17. Qd4 {[%clk 0:01:39]}  Bb3 {[%clk 0:01:33]} 18. Bb5 {[%clk 0:01:34]}  Qc7 {[%clk 0:01:28]} 19. Bf4 {[%clk 0:01:28]}  Qc5 {[%clk 0:01:16]} 20. Qxc5 {[%clk 0:01:25]}  dxc5 {[%clk 0:01:17]} 21. e5 {[%clk 0:01:19]}  Nd5 {[%clk 0:01:13]} 22. Nxd5 {[%clk 0:01:19]}  Bxd5 {[%clk 0:01:14]} 23. Rd2 {[%clk 0:01:20]}  Rfd8 {[%clk 0:01:10]} 24. O-O-O {[%clk 0:01:17]}  Bb3 {[%clk 0:01:09]} 25. Rxd8+ {[%clk 0:01:15]}  Rxd8 {[%clk 0:01:09]} 26. Rxd8+ {[%clk 0:01:14]}  Bxd8 {[%clk 0:01:10]} 27. Kd2 {[%clk 0:01:09]}  Bd5 {[%clk 0:01:08]} 28. Bf1 {[%clk 0:01:09]}  Bc7 {[%clk 0:01:02]} 29. Ke3 {[%clk 0:00:45]}  Kf8 {[%clk 0:01:01]} 30. h4 {[%clk 0:00:45]}  h6 {[%clk 0:00:57]} 31. g5 {[%clk 0:00:45]}  hxg5 {[%clk 0:00:57]} 32. hxg5 {[%clk 0:00:46]}  b6 {[%clk 0:00:51]} 33. Bb5 {[%clk 0:00:18]}  Ke7 {[%clk 0:00:51]} 34. f6+ {[%clk 0:00:13]}  gxf6 {[%clk 0:00:51]} 35. exf6+ {[%clk 0:00:14]}  Kd8 {[%clk 0:00:51]} 36. Bxc7+ {[%clk 0:00:13]}  Kxc7 {[%clk 0:00:52]} 37. g6 {[%clk 0:00:08]}  fxg6 {[%clk 0:00:49]} 38. Be8 {[%clk 0:00:07]}  Kd6 {[%clk 0:00:47]} 39. Kf4 {[%clk 0:00:05]}  Ke6 {[%clk 0:00:10]} 40. Kg5 {[%clk 0:00:05]}  Ke5 {[%clk 0:00:03]} 41. Bxg6 {[%clk 0:00:04]}  c4 {[%clk 0:00:04]} 42. f7 {[%clk 0:00:04]}  Bxf7 {[%clk 0:00:04]} 43. Bxf7 {[%clk 0:00:04]}  b5 {[%clk 0:00:04]} 44. a4 {[%clk 0:00:02]}  b4 {[%clk 0:00:01]} 45. Bxc4 {[%clk 0:00:02]}  Kd4 {[%clk 0:00:00]} 46. b3 {[%clk 0:00:03]} 1-0


[Site "https://www.chess.com"]

[Event "Titled Tuesday Blitz August 15 Late 2023"]
[White "Grinev, Valeriy"]
[Black "Dwilewicz, Katarzyna"]
[WhiteFideId "14117517"]
[BlackFideId "1148486"]
[WhiteElo "2515"]
[BlackElo "2400"]
[Result "1-0"]
[Round "8"]
[TimeControl "180+1"]
[Date "2023.08.15"]
[WhiteClock "0:01:18"]
[BlackClock "0:00:42"]
[Board "88"]

1. e4 {[%clk 0:03:00]}  c5 {[%clk 0:02:54]} 2. Nf3 {[%clk 0:03:01]}  d6 {[%clk 0:02:54]} 3. d4 {[%clk 0:03:01]}  cxd4 {[%clk 0:02:54]} 4. Nxd4 {[%clk 0:03:01]}  Nf6 {[%clk 0:02:55]} 5. Bd3 {[%clk 0:03:00]}  e5 {[%clk 0:02:52]} 6. Nb3 {[%clk 0:03:00]}  d5 {[%clk 0:02:51]} 7. exd5 {[%clk 0:02:56]}  Nxd5 {[%clk 0:02:49]} 8. O-O {[%clk 0:02:56]}  Nc6 {[%clk 0:02:49]} 9. Re1 {[%clk 0:02:52]}  Be7 {[%clk 0:02:47]} 10. a3 {[%clk 0:02:49]}  O-O {[%clk 0:02:45]} 11. Nc3 {[%clk 0:02:42]}  Nxc3 {[%clk 0:02:29]} 12. bxc3 {[%clk 0:02:43]}  f5 {[%clk 0:02:28]} 13. Be3 {[%clk 0:02:37]}  e4 {[%clk 0:02:19]} 14. Bc4+ {[%clk 0:02:37]}  Kh8 {[%clk 0:02:18]} 15. Bc5 {[%clk 0:02:36]}  Bxc5 {[%clk 0:02:09]} 16. Nxc5 {[%clk 0:02:37]}  Qe7 {[%clk 0:02:09]} 17. Nb3 {[%clk 0:02:29]}  Be6 {[%clk 0:02:07]} 18. Bxe6 {[%clk 0:02:27]}  Qxe6 {[%clk 0:02:06]} 19. Nd4 {[%clk 0:02:28]}  Qc4 {[%clk 0:02:01]} 20. Rb1 {[%clk 0:02:25]}  b6 {[%clk 0:01:57]} 21. Nxc6 {[%clk 0:02:06]}  Qxc6 {[%clk 0:01:57]} 22. Qd4 {[%clk 0:01:58]}  Rad8 {[%clk 0:01:55]} 23. Qe3 {[%clk 0:01:58]}  Qd6 {[%clk 0:01:44]} 24. a4 {[%clk 0:01:55]}  Rde8 {[%clk 0:01:23]} 25. a5 {[%clk 0:01:48]}  f4 {[%clk 0:01:21]} 26. Qd4 {[%clk 0:01:49]}  Qg6 {[%clk 0:00:59]} 27. axb6 {[%clk 0:01:37]}  f3 {[%clk 0:00:59]} 28. g3 {[%clk 0:01:36]}  Qh5 {[%clk 0:00:58]} 29. Qc4 {[%clk 0:01:26]}  Re6 {[%clk 0:00:42]} 30. Qxe6 {[%clk 0:01:18]} 1-0


[Site "https://www.chess.com"]